[Event "Bangabandhu Premier Div League 2022"]
[Site "Dhaka"]
[Date "2022.12.07"]
[Round "8.3"]
[White "Harikrishnan.A.Ra"]
[Black "Rahman, Syed Mahfuzur"]
[Result "1-0"]
[ECO "D02"]
[WhiteElo "2409"]
[BlackElo "2130"]
[Annotator "TA"]
[PlyCount "79"]
[EventDate "2022.11.30"]
[EventType "team-tourn"]
[EventCountry "BAN"]
[SourceTitle "playchess.com"]
[Source "ChessBase"]
[SourceQuality "1"]
[TimeControl "40/5400+30:1800+30"]

{[%evp 9,79,0,0,-3,-3,-6,0,8,23,7,30,0,25,0,52,3,42,23,39,14,22,15,23,6,22,14,21,0,29,0,0,0,18,18,21,24,18,17,43,24,53,61,68,56,58,52,59,62,68,38,29,-41,57,0,137,0,28,18,47,11,47,33,22,29,71,61,59,70,54,53,39,0]} 1. d4 {[%emt 0:03:32]} d5 {[%emt 0:02:15]} 2. Nf3 {[%emt 0:00:06]} Nf6 {[%emt 0:00:08]} 3. c3 {[%emt 0:00:06]} Bf5 {[%emt 0:00:58]} 4. Qb3 {[%emt 0:00:06]} Qc8 {[%emt 0:00:03]} 5. c4 {[%emt 0:01:14]} dxc4 {[%emt 0:12:44]} 6. Qxc4 {[%emt 0:00:02] D02: 1 d4 d5 2 Nf3 sidelines, including 2...Nf6 3 g3 and 2...Nf6 3 Bf4.} e6 {[%emt 0:00:05]} 7. Nc3 {[%emt 0:00:24]} Nbd7 {[%emt 0:08:47]} 8. g3 {[%emt 0:02:05] [#] The position is equal.} Nb6 $146 {[%emt 0:05:07]} ({Predecessor:} 8... c6 9. Bg2 b5 10. Qb3 b4 11. Na4 Be4 12. O-O Qa6 13. Re1 Be7 14. Bd2 Rb8 {½-½ (23) Karhanek,P (2144)-Musaev,M (2178) Pardubice 2006}) 9. Qb3 {[%emt 0:00:24]} a5 {[%emt 0:00:13]} 10. e3 {[%emt 0:07:28]} h6 {[%emt 0:09:40]} 11. Bg2 {[%emt 0:04:19]} Nbd5 {[%emt 0:06:06]} (11... Bd3 $11) 12. a3 {[%emt 0:04:32]} (12. Ne5 $14) 12... c6 {[%emt 0:04:56]} 13. O-O {[%emt 0:00:59]} Be7 {[%emt 0:01:24]} 14. Nd2 {[%emt 0:03:20]} Nxc3 {[%emt 0:05:19]} 15. bxc3 {[%emt 0:00:19]} Bd3 {[%emt 0:00:27] Inhibits a4.} 16. Re1 {[%emt 0:00:40]} a4 {[%emt 0:00:05] Inhibits c4.} 17. Qb2 {[%emt 0:02:39]} O-O {[%emt 0:05:54]} 18. e4 {[%emt 0:01:52][%cal Be3e4,Be4e5][%mdl 32]} (18. c4 $5 {[%cal Re3e4]}) 18... Qd7 {[%emt 0:06:06]} (18... c5 $5) 19. e5 {[%emt 0:04:17]} (19. Nf3 $5 {[%cal Rf3e5]} Qe8 20. Ne5 $14) 19... Ne8 {[%emt 0:03:15][%cal Bf6e8,Be8c7,Bc7d5][%mdl 32]} 20. Ne4 {[%emt 0:09:09]} Nc7 {[%emt 0:02:46]} 21. Qd2 {[%emt 0:09:43]} (21. Qxb7 $2 {loses.} Rfb8 22. Nc5 Bxc5 23. Qxc6 Qxc6 24. Bxc6 Ra6 $19) 21... Bc4 {[%emt 0:02:29]} 22. Qf4 {[%emt 0:00:50]} Nd5 {[%emt 0:05:50]} 23. Qg4 {[%emt 0:00:35]} Kh7 {[%emt 0:00:12]} 24. Qh5 {[%emt 0:05:08]} (24. Qh3 $5 {[%cal Rg3g4]}) 24... Qe8 {[%emt 0:05:41]} 25. Nd2 {[%emt 0:08:34]} Bd3 {[%emt 0:01:04]} 26. c4 {[%emt 0:00:05]} Nc7 {[%emt 0:04:17]} 27. Qf3 {[%emt 0:02:56]} Bg6 {[%emt 0:00:41]} 28. Ne4 {[%emt 0:00:50]} Qd7 {[%emt 0:02:15]} 29. Bb2 {[%emt 0:07:26] White is more active.} b5 {[%emt 0:00:30]} 30. h4 {[%emt 0:04:26]} ({Better is} 30. c5 $11) 30... Kh8 {[%emt 0:01:48]} (30... bxc4 $15 31. Rac1 Rfb8) 31. h5 {[%emt 0:00:17]} ({White should play} 31. cxb5 $14 cxb5 32. Nf6 $1 (32. Nc5 Bxc5 33. dxc5 Nd5 $14)) 31... Bh7 {[%emt 0:00:28] [#]} (31... Bxe4 $1 $11 {keeps the balance.} 32. Qxe4 bxc4) 32. Rac1 {[%emt 0:05:52]} (32. Nf6 $1 $16 {[%cal Rf6d7][%mdl 512]} gxf6 33. exf6) 32... Rab8 {[%emt 0:02:50]} 33. Qe2 {[%emt 0:01:02]} Rfc8 {[%emt 0:01:06]} 34. Rc2 {[%emt 0:01:42]} b4 {[%emt 0:01:18]} 35. axb4 {[%emt 0:00:32]} Bxb4 {[%emt 0:00:07]} 36. Rd1 {[%emt 0:01:12]} Na6 {[%emt 0:00:40]} 37. Ra1 {[%emt 0:02:56]} a3 $1 {[%emt 0:00:49] White is slightly better.} 38. Bxa3 {[%emt 0:00:20] Hoping for Bc1.} ({Don't play} 38. Bc3 c5 39. Rcc1 Bxc3 40. Rxc3 Rb2 $17) 38... Qxd4 {[%emt 0:00:31]} 39. Bb2 {[%emt 0:01:23]} Qb6 {[%emt 0:00:07]} 40. Bc1 {[%emt 0:00:00][%mdl 32768] Weighted Error Value: White=0.19 (very precise) /Black=0.22 (precise) . Loss on time!?} 1-0

[Event "Bangabandhu Premier Div League 2022"]
[Site "Dhaka"]
[Date "2022.12.07"]
[Round "8.3"]
[White "Nayan Kumar, Mohanto"]
[Black "Mitrabha, Guha"]
[Result "0-1"]
[ECO "A46"]
[WhiteElo "1976"]
[BlackElo "2474"]
[Annotator "TA"]
[PlyCount "76"]
[EventDate "2022.12.01"]
[EventCountry "BAN"]
[SourceTitle "playchess.com"]
[Source "ChessBase"]
[SourceQuality "1"]
[TimeControl "40/5400+30:1800+30"]

{[%evp 9,76,-1,1,1,8,-2,-11,-54,-54,-50,-34,-44,-42,-99,-72,-85,-78,-106,-112,-143,-148,-161,-166,-156,-118,-120,-118,-121,-116,-118,-114,-121,-106,-120,-113,-179,-180,-202,-206,-195,-197,-200,-155,-192,-200,-207,-200,-221,-206,-267,-264,-271,-263,-292,-279,-279,-261,-464,-425,-418,-349,-335,-333,-321,-331,-579,-577,-900,-853]} 1. d4 {[%emt 1:31:00]} Nf6 {[%emt 0:00:12]} 2. Nf3 {[%emt 0:00:30]} e6 {[%emt 1:31:18]} 3. g3 {[%emt 0:00:00]} b5 4. a4 {[%emt 0:00:00]} b4 {[%emt 0:01:00]} 5. c4 {[%emt 0:01:30]} bxc3 {[%emt 0:00:30]} 6. Nxc3 {[%emt 0:00:30] A46: 1 d4 Nf6 2 Nf3 e6: Torre, London and Colle Systems.} d5 {[%emt 0:00:30] [#]} 7. Bg5 $146 {[%emt 0:00:30]} ({Predecessor:} 7. Bg2 Bb7 8. O-O Nbd7 9. Bf4 Be7 10. Nb5 O-O 11. Bxc7 Qc8 12. Rc1 Ne4 13. Nd2 Nxd2 14. Qxd2 {1-0 (19) Rios Escobar,A (2276)-Hambleton,A (2454) Chess.com INT 2022}) 7... Nbd7 {[%emt 0:00:30]} 8. Ne5 {[%emt 0:00:30] The position is equal.} Nxe5 {[%emt 0:00:00]} 9. dxe5 {[%emt 0:00:30]} h6 $1 {[%emt 0:01:00]} 10. Bxf6 {[%emt 0:00:00]} gxf6 {[%emt 0:00:00]} 11. Qd4 (11. exf6 $15 Rb8 12. Qc2) 11... Bg7 {[%emt 0:01:00]} 12. exf6 {[%emt 0:01:30]} Qxf6 {[%emt 0:00:00]} 13. Qc5 {[#] And now Qc6+ would win.} Bd7 {[%emt 0:01:00] Inhibits Qc6.} 14. Rc1 {[%emt 0:00:00]} c6 {[%emt 0:00:30]} 15. Bg2 {[%emt 0:00:00]} Qe7 {[%emt 0:00:00]} 16. Qa5 {[%emt 0:00:00]} O-O {[%emt 0:01:00]} 17. O-O {[%emt 0:02:30]} Rfb8 {[%emt 0:00:30][%cal Bf8b8,Bb8b6,Bb6b3][%mdl 32] Inhibits b4.} 18. Rc2 {[%emt 0:00:00]} Qb4 {[%emt 0:00:30]} 19. Qa6 {[%emt 0:01:00]} Rb6 $36 {[%emt 0:00:30][%mdl 2048] Black is on the roll.} 20. Qd3 {[%emt 0:00:00][%cal Oc3e4]} Qd4 {[%emt 0:00:30] Against Ne4} 21. Qf3 {[%emt 0:00:00]} Rab8 {[%emt 0:00:30][%cal Ba8b8,Bb8b4,Bb4a4][%mdl 32] Black is more active.} 22. Rb1 {[%emt 0:00:00] [#]} (22. Rd1 $17 {was necessary.} Qe5 23. Rdd2) 22... Rb3 $1 $19 {[%emt 0:00:30]} 23. Bf1 {[%emt 0:02:00]} Qf6 {[%emt 0:00:30] Prevents e4.} 24. Qxf6 {[%emt 0:00:00]} Bxf6 {[%emt 0:00:00]} 25. Nd1 {[%emt 0:00:00]} R8b4 26. a5 {[%emt 0:00:00]} Ra4 27. a6 {[%emt 0:02:00]} Rxa6 {[%emt 0:00:00]} 28. e4 {[%emt 0:00:00]} Ra4 {[%emt 0:00:00]} 29. Bg2 {[%emt 0:00:00]} a5 {[%emt 0:03:00][%cal Ba7a5,Ba5a4][%mdl 32]} (29... dxe4 $2 30. Re2 $19) 30. Rd2 {[%emt 0:01:30]} Rab4 {[%emt 0:00:30]} 31. Kf1 {[%emt 0:00:00]} a4 {[%emt 0:00:00] Hoping for ...a3.} 32. Ra1 Bc8 {[%emt 0:01:00]} (32... Bxb2 $2 33. Nxb2 Rxb2 34. Rxb2 Rxb2 35. Rxa4 $19) 33. Rc2 $2 {[%emt 0:00:00]} (33. Ke1) 33... Ba6+ {[%emt 0:00:30]} (33... dxe4 $2 {loses.} 34. Ke1 $19) 34. Ke1 {[%emt 0:00:00]} Bb5 {[%emt 0:00:30] This pair of bishops is nice.} (34... dxe4 $2 {perishes.} 35. Rxc6 Bd3 36. Rcc1 $19) 35. exd5 {[%emt 0:00:00]} exd5 {[%emt 0:00:30][%cal Rb3b2,Be6d5,Bd5d4][%mdl 32]} (35... cxd5 $2 {is the wrong capture.} 36. Rd2) 36. Ra2 {[%emt 0:00:00]} Kf8 37. Bf1 $2 {[%emt 0:03:30]} (37. f4 {might work better.}) 37... Re4+ {[%emt 0:01:00]} 38. Be2 {[%emt 0:00:00]} d4 {[%emt 0:00:00] Weighted Error Value: White=0.40/Black=0.07 (flawless)} 0-1

[Event "Bangabandhu Premier Div League 2022"]
[Site "Dhaka"]
[Date "2022.12.07"]
[Round "8.4"]
[White "Mohammad Nubairshah Shaikh"]
[Black "Asif, Mahmud"]
[Result "1/2-1/2"]
[ECO "D78"]
[WhiteElo "2439"]
[BlackElo "1926"]
[Annotator "TA"]
[PlyCount "163"]
[EventDate "2022.11.30"]
[EventType "team-tourn"]
[EventCountry "BAN"]
[SourceTitle "playchess.com"]
[Source "ChessBase"]
[SourceQuality "1"]
[TimeControl "40/5400+30:1800+30"]

{[%evp 15,163,-2,25,14,30,18,21,28,38,17,32,29,35,22,41,24,48,25,32,14,69,64,66,70,64,61,69,64,67,74,70,70,68,71,78,78,79,78,85,86,100,85,94,94,94,94,94,93,94,93,94,94,94,94,94,94,94,94,94,94,107,80,80,54,81,54,54,34,34,34,34,0,0,0,0,0,0,0,0,0,0,0,0,0,0,0,0,0,0,0,0,0,0,0,0,0,0,0,0,0,0,0,0,0,0,0,0,0,0,0,0,0,0,0,0,0,0,0,0,0,0,0,0,0,0,0,0,0,0,-8,0,0,0,0,0,0,0,0,0,0,0,0,0,0,0,0,0,0,0,0]} 1. Nf3 {[%emt 0:05:55]} d5 {[%emt 0:00:22]} 2. g3 {[%emt 0:00:11]} Nf6 {[%emt 0:00:33]} 3. Bg2 {[%emt 0:00:02]} g6 {[%emt 0:01:39]} 4. c4 {[%emt 0:00:36]} c6 {[%emt 0:01:12]} 5. b3 {[%emt 0:00:07]} Bg7 {[%emt 0:00:33]} 6. Bb2 {[%emt 0:00:01]} O-O {[%emt 0:01:22]} 7. O-O {[%emt 0:00:11]} Nbd7 {[%emt 0:06:58]} 8. d4 {[%emt 0:13:33]} b6 {[%emt 0:05:16] Recently 8...b5 got a lot of attention.} 9. Nc3 {[%emt 0:15:57] D78: Fianchetto Grünfeld: 6 0-0 c6.} Bb7 {[%emt 0:04:47]} 10. Nd2 {[%emt 0:09:54] [#]} e5 $146 {[%emt 0:12:31]} ({Predecessor:} 10... Rc8 11. e4 dxe4 12. Ndxe4 Nxe4 13. Bxe4 Qc7 14. Re1 Rfd8 15. Bg2 Nf8 16. Qe2 Rxd4 {1-0 (59) Gajewski,G (2615)-Stefansson,H (2574) Reykjavik 2017}) 11. dxe5 {[%emt 0:03:53]} Nxe5 {[%emt 0:00:15]} 12. cxd5 {[%emt 0:00:03]} (12. Nxd5 $5 Nxd5 13. cxd5 $11) 12... Nxd5 {[%emt 0:01:04]} 13. Nxd5 {[%emt 0:03:28]} cxd5 {[%emt 0:00:20]} 14. Rb1 {[%emt 0:02:41]} Re8 {[%emt 0:04:55]} 15. Nf3 {[%emt 0:01:48]} Qe7 {[%emt 0:07:15]} 16. Nd4 {[%emt 0:09:00]} Rad8 {[%emt 0:04:04]} 17. Qd2 {[%emt 0:02:15]} Nc6 {[%emt 0:09:39]} ({Black should try} 17... Nd7 $11) 18. e3 {[%emt 0:00:43]} Nxd4 {[%emt 0:05:42]} 19. Bxd4 {[%emt 0:00:05]} Bxd4 {[%emt 0:00:08]} 20. Qxd4 {[%emt 0:00:06]} Qe5 {[%emt 0:00:18]} 21. Rfd1 {[%emt 0:00:02]} Qxd4 {[%emt 0:00:11]} 22. Rxd4 {[%emt 0:00:03]} Rc8 {[%emt 0:00:50]} 23. Bxd5 {[%emt 0:13:26]} Bxd5 {[%emt 0:00:17]} 24. Rxd5 $14 {[%emt 0:00:01][%mdl 4096] Endgame KRR-KRR} Rc2 {[%emt 0:00:10]} 25. a4 {[%emt 0:00:01]} Rec8 {[%emt 0:01:04]} 26. Rbd1 {[%emt 0:00:38]} Kg7 {[%emt 0:09:31]} 27. R1d4 {[%emt 0:07:34]} R8c7 {[%emt 0:07:33]} 28. Rf4 {[%emt 0:05:48]} R2c5 {[%emt 0:08:59]} 29. Rxc5 {[%emt 0:04:58] White is more active.} Rxc5 $16 {[%emt 0:00:09] KR-KR} 30. Rc4 {[%emt 0:00:04] Rxc5 is the strong threat.} Rd5 {[%emt 0:01:41]} 31. Rd4 {[%emt 0:00:07]} Rc5 {[%emt 0:00:58]} 32. b4 {[%emt 0:01:56]} Rc1+ {[%emt 0:03:16]} 33. Kg2 {[%emt 0:00:01]} a6 {[%emt 0:00:08]} 34. Rd6 {[%emt 0:00:32]} Ra1 {[%emt 0:00:06]} 35. a5 {[%emt 0:00:01]} bxa5 {[%emt 0:00:38]} 36. Rxa6 {[%emt 0:00:01]} a4 {[%emt 0:00:10]} 37. g4 {[%emt 0:00:35]} g5 {[%emt 0:00:54]} 38. Kf3 {[%emt 0:02:19]} a3 {[%emt 0:00:29]} 39. Ke4 {[%emt 0:00:37]} a2 {[%emt 0:01:42]} 40. Kf5 {[%emt 0:00:05]} (40. b5 {simplifies} Rb1 41. Rxa2 Rxb5 42. Kf3) 40... h6 {[%emt 0:00:00]} 41. e4 {[%emt 0:09:02]} Rb1 $1 {[%emt 0:04:16]} 42. Rxa2 {[%emt 0:00:02] [#] Threatens to win with Ra4.} Rxb4 {[%emt 0:00:08]} 43. h4 {[%emt 0:02:56]} (43. f4 $5 {[%cal Rf4g5]}) 43... Rb3 {[%emt 0:07:59] The position is equal.} 44. f4 {[%emt 0:00:48]} gxh4 {[%emt 0:01:58]} 45. e5 {[%emt 0:04:36]} Re3 {[%emt 0:02:44]} 46. g5 {[%emt 0:04:30]} (46. Rh2 $5) 46... hxg5 {[%emt 0:01:17]} 47. Kxg5 {[%emt 0:00:17]} h3 {[%emt 0:01:33]} 48. Rh2 {[%emt 0:04:08]} Rb3 {[%emt 0:10:46]} 49. Rh1 {[%emt 0:02:57]} Ra3 {[%emt 0:00:24]} 50. Kg4 {[%emt 0:04:24]} Kg6 {[%emt 0:06:04]} 51. f5+ {[%emt 0:00:46]} Kh6 {[%emt 0:00:37]} 52. Rh2 {[%emt 0:01:27]} Rb3 {[%emt 0:00:26]} 53. Rf2 {[%emt 0:01:02]} Kg7 {[%emt 0:00:20]} 54. Re2 {[%emt 0:00:17]} Rc3 {[%emt 0:00:21]} 55. Ra2 {[%emt 0:00:46]} Re3 {[%emt 0:00:27]} 56. Kf4 {[%emt 0:00:08]} Rb3 {[%emt 0:00:08]} 57. Rh2 {[%emt 0:00:46]} Rc3 {[%emt 0:00:22]} 58. Rh1 {[%emt 0:00:15]} Rc4+ {[%emt 0:00:27]} 59. Kg5 {[%emt 0:00:46]} Rc3 {[%emt 0:00:57]} 60. Rh2 {[%emt 0:00:42]} Ra3 {[%emt 0:00:20]} 61. Kg4 {[%emt 0:00:32]} Re3 {[%emt 0:00:34]} 62. Kf4 {[%emt 0:00:13]} Ra3 {[%emt 0:00:08]} 63. Re2 {[%emt 0:00:34]} Rb3 {[%emt 0:01:16]} 64. Rc2 {[%emt 0:00:26]} Ra3 {[%emt 0:00:24]} 65. Rb2 {[%emt 0:00:26]} Rc3 {[%emt 0:00:16]} 66. Rh2 {[%emt 0:00:04]} Ra3 {[%emt 0:00:05]} 67. Rh1 {[%emt 0:00:01]} Ra4+ {[%emt 0:02:04]} 68. Kg5 {[%emt 0:00:16]} Ra3 {[%emt 0:00:00]} 69. Kg4 {[%emt 0:01:46]} Re3 {[%emt 0:00:00]} 70. Kf4 {[%emt 0:00:01]} Ra3 {[%emt 0:00:03]} 71. Rg1+ {[%emt 0:00:23]} Kh6 {[%emt 0:01:22]} 72. Kg4 {[%emt 0:01:19]} Kg7 {[%emt 0:00:18]} (72... h2 {looks sharper.} 73. Rh1 Ra2 74. e6 fxe6 75. fxe6 Kg7) 73. Rh1 {[%emt 0:00:32]} Re3 {[%emt 0:00:16]} 74. Kf4 {[%emt 0:00:05]} Ra3 {[%emt 0:00:04]} 75. Rg1+ {[%emt 0:00:42]} Kh6 {[%emt 0:01:23]} 76. e6 {[%emt 0:00:01]} fxe6 {[%emt 0:00:14]} 77. fxe6 {[%emt 0:00:01]} h2 {[%emt 0:00:17]} 78. Re1 {[%emt 0:00:01] [#] e7 would kill now.} Kg7 {[%emt 0:00:34]} 79. e7 {[%emt 0:01:34]} Ra8 {[%emt 0:00:17]} 80. Rh1 {[%emt 0:00:33]} Kf7 {[%emt 0:00:24]} 81. Rxh2 {[%emt 0:00:03]} Kxe7 {[%emt 0:00:09]} 82. Ke4 {[%emt 0:00:34] Weighted Error Value: White=0.07 (flawless) /Black=0.06 (flawless)} 1/2-1/2

[Event "Bangabandhu Premier Div League 2022"]
[Site "Dhaka"]
[Date "2022.12.07"]
[Round "8.4"]
[White "Chatterjee, Debaraj"]
[Black "Swarnavo Choudhury"]
[Result "1-0"]
[ECO "E07"]
[WhiteElo "2196"]
[BlackElo "1977"]
[Annotator "TA"]
[PlyCount "53"]
[EventDate "2022.12.01"]
[EventCountry "BAN"]
[SourceTitle "playchess.com"]
[Source "ChessBase"]
[SourceQuality "1"]
[TimeControl "40/5400+30:1800+30"]

{[%evp 19,53,39,39,39,30,32,42,22,34,29,50,57,88,89,122,8,77,71,153,150,160,148,481,296,1271,1150,29987,29988,29988,29989,29989,29990,29990,29991,29991,29992]} 1. d4 {[%emt 1:31:00]} d5 {[%emt 0:21:08]} 2. c4 {[%emt 0:00:00]} e6 {[%emt 0:00:08]} 3. Nf3 {[%emt 0:00:00]} Nf6 {[%emt 0:00:08]} 4. g3 {[%emt 0:00:00]} Be7 {[%emt 0:00:34]} 5. Bg2 {[%emt 0:00:00]} O-O {[%emt 1:11:02]} 6. O-O {[%emt 0:02:30]} c6 {[%emt 0:00:30]} 7. Nfd2 {[%emt 0:00:00]} b6 {[%emt 0:00:00]} 8. Nc3 {[%emt 0:00:00]} Bb7 {[%emt 0:00:00]} 9. e4 {[%emt 0:00:00]} dxe4 {[%emt 0:00:00]} 10. Ndxe4 {[%emt 0:02:00]} Nbd7 {[%emt 0:02:00]} 11. Qe2 {[%emt 0:00:30] E07: Closed Catalan: Main Line (5 Nf3 0-0 6 0-0 Nbd7).} Nxe4 {[%emt 0:00:00]} 12. Nxe4 {[%emt 0:00:30]} Nf6 {[%emt 0:00:00]} 13. Be3 {White is slightly better.} Nxe4 14. Bxe4 {[%emt 0:00:00] [#]} Qc7 $146 {[%emt 0:00:00]} ({Predecessor:} 14... Bf6 15. Rad1 Qe7 16. c5 Rfd8 17. b4 b5 18. Qf3 Rdc8 19. Bf4 g6 20. Be5 Bg7 {1-0 (32) Dankhazi,A (2267)-Laza,S (2168) Zalakaros 2016}) 15. c5 {[%emt 0:01:30]} f5 {[%emt 0:00:00]} 16. Bc2 {[%emt 0:00:00]} e5 {[%emt 0:00:00]} 17. f4 {[%emt 0:00:00]} (17. Rad1 $16) 17... exd4 {[%emt 0:00:00]} (17... e4 $11 {remains equal.}) 18. Bxd4 $16 {[%emt 0:00:00]} Bf6 {[%emt 0:04:00]} ({Better is} 18... Bxc5 19. Bxc5 bxc5) 19. Bxf6 {[%emt 0:00:00] White is more active.} Rxf6 {[%emt 0:00:00]} 20. Rfe1 {[%emt 0:00:00]} Raf8 $2 {[%emt 0:00:00][%mdl 8192] Black cannot hold the game after this.} (20... bxc5 $16 21. Qc4+ Kh8) 21. Qe7 {[%emt 0:00:00]} Qb8 {[%emt 0:00:00]} (21... Qxe7 22. Rxe7 Rb8) 22. Rad1 {[%emt 0:00:00] [#] Threatening mate with Rd7.} Ba6 {[%emt 0:00:00]} 23. Rd7 {[%emt 0:00:00][%csl Gd7,LRa7,LRg7][%cal Re7g7] White mates.} Rg6 {[%emt 0:00:00]} 24. Bb3+ {[%emt 0:00:00]} Kh8 {[%emt 0:00:00]} 25. Red1 {[%emt 0:00:00]} Qe8 {[%emt 0:00:22]} 26. Qxe8 {[%emt 0:00:00]} ({Weaker is} 26. Rxa7 Qxe7 27. Rxe7 bxc5 $18) 26... Rxe8 {[%emt 0:00:02]} 27. Rd8 {[%emt 0:00:00] Weighted Error Value: White=0.24 (precise) /Black=0.60} 1-0

[Event "Bangabandhu Premier Div League 2022"]
[Site "Dhaka"]
[Date "2022.12.07"]
[Round "8.5"]
[White "Mohammad Fahad, Rahman"]
[Black "Md, Mesbah Uddin"]
[Result "1-0"]
[ECO "D38"]
[WhiteElo "2380"]
[BlackElo "1778"]
[Annotator "TA"]
[PlyCount "47"]
[EventDate "2022.11.30"]
[EventType "team-tourn"]
[EventCountry "BAN"]
[SourceTitle "playchess.com"]
[Source "ChessBase"]
[SourceQuality "1"]
[TimeControl "40/5400+30:1800+30"]

{[%evp 10,47,6,5,36,38,33,25,49,43,54,20,27,12,12,27,60,50,55,49,63,72,81,88,79,27,33,29,29,0,29,29,33,19,148,147,348,328,1311,1249]} 1. Nf3 {[%emt 0:00:14]} d5 {[%emt 0:00:16]} 2. d4 {[%emt 0:00:17]} Nf6 {[%emt 0:00:24][%cal Bg8f6,Bf6e4,Be4d2][%mdl 32]} 3. c4 {[%emt 0:00:07]} e6 {[%emt 0:00:13]} 4. Nc3 {[%emt 0:00:24]} Bb4 {[%emt 0:01:05]} 5. Qa4+ {[%emt 0:00:17]} Nc6 {[%emt 0:00:24][%cal Bb8c6,Bc6e7,Be7d5][%mdl 32]} 6. e3 {[%emt 0:00:07]} Ne4 {[%emt 0:02:40] D38: Queen's Gambit Declined: Ragozin Defence (4 Nf3 Bb4).} (6... O-O {simplifies} 7. Bd2 dxc4 8. Bxc4 Bd6) 7. Bd2 {[%emt 0:02:20]} Nxd2 {[%emt 0:00:39]} 8. Nxd2 {[%emt 0:00:03] [#]} Bxc3 $146 {[%emt 0:01:08] White has an edge.} ({Predecessor:} 8... O-O 9. cxd5 exd5 10. Bd3 Qg5 11. Kf1 Bf5 12. Qc2 Bxd3+ 13. Qxd3 a6 14. h4 Qg6 15. Qxg6 hxg6 {½-½ (46) Krstic,A (2051)-Nikolic,Z (2102) Nis 2022}) 9. bxc3 {[%emt 0:00:03]} O-O {[%emt 0:00:24]} 10. Nf3 {[%emt 0:00:42]} Ne7 {[%emt 0:02:40]} 11. Qc2 {[%emt 0:00:36]} b6 {[%emt 0:00:58]} 12. Bd3 {[%emt 0:01:52]} f5 {[%emt 0:02:26]} 13. cxd5 {[%emt 0:00:54]} Nxd5 {[%emt 0:01:14]} 14. O-O {[%emt 0:02:41]} a5 {[%emt 0:01:57]} 15. Rfe1 {[%emt 0:08:37]} Ba6 {[%emt 0:05:06]} 16. Bxa6 {[%emt 0:00:19]} Rxa6 {[%emt 0:00:08]} 17. e4 {[%emt 0:00:07]} (17. Rab1 $16) 17... fxe4 $11 {[%emt 0:02:23]} 18. Qxe4 {[%emt 0:00:22]} b5 {[%emt 0:00:51]} 19. Rac1 {[%emt 0:01:22]} Nf4 {[%emt 0:06:34]} 20. c4 {[%emt 0:08:26]} b4 {[%emt 0:01:22]} 21. Re3 {[%emt 0:03:01]} c5 {[%emt 0:05:20]} (21... Qa8 $11 {remains equal.}) 22. dxc5 $16 {[%emt 0:01:35]} Qc7 $2 {[%emt 0:00:11] Against c6} (22... Qa8 $16 {keeps fighting.}) 23. Ng5 $18 {[%emt 0:03:53][%csl Gg5][%cal Re4h7]} Rf5 $2 {[%emt 0:08:27] [#]} (23... g6 24. g3 h6) 24. Qxf5 $3 {[%emt 0:00:12][%mdl 512] Weighted Error Value: White=0.10 (very precise) /Black=0.37} 1-0